[Event "Titled Tuesday Blitz February 28 Early 2023"]
[White "Fernandez Guillen, Ernesto J."]
[Black "Fiedorek, Michal"]
[WhiteFideId "3512428"]
[BlackFideId "1199528"]
[WhiteElo "2423"]
[BlackElo "2135"]
[Result "1/2-1/2"]
[Round "01"]
[TimeControl "180+2"]
[Date "2023.02.28"]
[WhiteClock "0:00:12"]
[BlackClock "0:00:17"]

1. e4 {[%clk 0:02:52]}  c5 {[%clk 0:02:40]} 2. Nf3 {[%clk 0:02:50]}  d6 {[%clk 0:02:40]} 3. d4 {[%clk 0:02:50]}  cxd4 {[%clk 0:02:41]} 4. Nxd4 {[%clk 0:02:50]}  Nf6 {[%clk 0:02:41]} 5. Nc3 {[%clk 0:02:51]}  Nc6 {[%clk 0:02:42]} 6. Bc4 {[%clk 0:02:51]}  e6 {[%clk 0:02:42]} 7. Be3 {[%clk 0:02:49]}  Be7 {[%clk 0:02:41]} 8. Bb3 {[%clk 0:02:49]}  a6 {[%clk 0:02:41]} 9. f3 {[%clk 0:02:48]}  O-O {[%clk 0:02:39]} 10. Qd2 {[%clk 0:02:45]}  Nxd4 {[%clk 0:02:39]} 11. Bxd4 {[%clk 0:02:42]}  b5 {[%clk 0:02:40]} 12. O-O-O {[%clk 0:02:41]}  Bb7 {[%clk 0:02:40]} 13. g4 {[%clk 0:02:40]}  Nd7 {[%clk 0:02:40]} 14. h4 {[%clk 0:02:39]}  b4 {[%clk 0:02:40]} 15. Ne2 {[%clk 0:02:39]}  a5 {[%clk 0:02:38]} 16. g5 {[%clk 0:02:36]}  a4 {[%clk 0:02:17]} 17. Bc4 {[%clk 0:02:35]}  b3 {[%clk 0:02:06]} 18. cxb3 {[%clk 0:02:29]}  d5 {[%clk 0:02:04]} 19. exd5 {[%clk 0:02:27]}  exd5 {[%clk 0:02:03]} 20. Bd3 {[%clk 0:02:26]}  axb3 {[%clk 0:02:04]} 21. a3 {[%clk 0:02:27]}  Ba6 {[%clk 0:02:02]} 22. Nc3 {[%clk 0:02:24]}  Qa5 {[%clk 0:01:38]} 23. Rhe1 {[%clk 0:02:10]}  Bxd3 {[%clk 0:01:28]} 24. Rxe7 {[%clk 0:02:08]}  Bf5 {[%clk 0:01:05]} 25. Qf4 {[%clk 0:02:02]}  Be6 {[%clk 0:00:56]} 26. Rxe6 {[%clk 0:01:39]}  fxe6 {[%clk 0:00:55]} 27. Qd6 {[%clk 0:01:38]}  e5 {[%clk 0:00:29]} 28. Bg1 {[%clk 0:01:36]}  Rxf3 {[%clk 0:00:23]} 29. Nxd5 {[%clk 0:01:08]}  Qb5 {[%clk 0:00:15]} 30. Nc3 {[%clk 0:00:31]}  Qc4 {[%clk 0:00:13]} 31. Qd5+ {[%clk 0:00:25]}  Qxd5 {[%clk 0:00:13]} 32. Nxd5 {[%clk 0:00:26]}  Nf8 {[%clk 0:00:07]} 33. Nc3 {[%clk 0:00:18]}  Ng6 {[%clk 0:00:06]} 34. h5 {[%clk 0:00:16]}  Nf4 {[%clk 0:00:06]} 35. h6 {[%clk 0:00:16]}  gxh6 {[%clk 0:00:06]} 36. gxh6 {[%clk 0:00:17]}  Kf7 {[%clk 0:00:07]} 37. Bb6 {[%clk 0:00:14]}  Kg6 {[%clk 0:00:06]} 38. Bc7 {[%clk 0:00:15]}  Kxh6 {[%clk 0:00:05]} 39. Kb1 {[%clk 0:00:09]}  Nd3 {[%clk 0:00:04]} 40. Ne4 {[%clk 0:00:08]}  Rc8 {[%clk 0:00:04]} 41. Ba5 {[%clk 0:00:08]}  Kg6 {[%clk 0:00:04]} 42. Bc3 {[%clk 0:00:08]}  Kf5 {[%clk 0:00:03]} 43. Nd6+ {[%clk 0:00:09]}  Ke6 {[%clk 0:00:04]} 44. Nxc8 {[%clk 0:00:10]}  h5 {[%clk 0:00:03]} 45. a4 {[%clk 0:00:10]}  h4 {[%clk 0:00:04]} 46. a5 {[%clk 0:00:11]}  h3 {[%clk 0:00:04]} 47. a6 {[%clk 0:00:11]}  Rf8 {[%clk 0:00:04]} 48. Nb6 {[%clk 0:00:10]}  h2 {[%clk 0:00:04]} 49. a7 {[%clk 0:00:10]}  Nf2 {[%clk 0:00:04]} 50. Rf1 {[%clk 0:00:10]}  h1=Q {[%clk 0:00:04]} 51. Rxh1 {[%clk 0:00:11]}  Nxh1 {[%clk 0:00:04]} 52. a8=Q {[%clk 0:00:11]}  Rxa8 {[%clk 0:00:04]} 53. Nxa8 {[%clk 0:00:12]}  e4 {[%clk 0:00:05]} 54. Kc1 {[%clk 0:00:12]}  Nf2 {[%clk 0:00:04]} 55. Kd2 {[%clk 0:00:12]}  Kd5 {[%clk 0:00:05]} 56. Nb6+ {[%clk 0:00:11]}  Kc6 {[%clk 0:00:04]} 57. Nc4 {[%clk 0:00:11]}  Kd5 {[%clk 0:00:04]} 58. Na5 {[%clk 0:00:11]}  Nd3 {[%clk 0:00:03]} 59. Nxb3 {[%clk 0:00:10]}  Kc4 {[%clk 0:00:02]} 60. Nc1 {[%clk 0:00:10]}  Nxb2 {[%clk 0:00:02]} 61. Bxb2 {[%clk 0:00:10]}  e3+ {[%clk 0:00:02]} 62. Kxe3 {[%clk 0:00:10]}  Kd5 {[%clk 0:00:03]} 63. Kd3 {[%clk 0:00:10]}  Kc5 {[%clk 0:00:03]} 64. Bc3 {[%clk 0:00:09]}  Kd5 {[%clk 0:00:03]} 65. Nb3 {[%clk 0:00:09]}  Ke6 {[%clk 0:00:03]} 66. Ke4 {[%clk 0:00:10]}  Kd6 {[%clk 0:00:04]} 67. Kd4 {[%clk 0:00:07]}  Kc6 {[%clk 0:00:05]} 68. Kc4 {[%clk 0:00:07]}  Kd6 {[%clk 0:00:06]} 69. Bd4 {[%clk 0:00:07]}  Ke6 {[%clk 0:00:07]} 70. Nd2 {[%clk 0:00:07]}  Kf5 {[%clk 0:00:08]} 71. Kd5 {[%clk 0:00:08]}  Kf4 {[%clk 0:00:08]} 72. Bf2 {[%clk 0:00:09]}  Kf5 {[%clk 0:00:09]} 73. Be3 {[%clk 0:00:09]}  Kf6 {[%clk 0:00:10]} 74. Ne4+ {[%clk 0:00:08]}  Kf5 {[%clk 0:00:11]} 75. Nd6+ {[%clk 0:00:09]}  Kf6 {[%clk 0:00:11]} 76. Bf4 {[%clk 0:00:09]}  Ke7 {[%clk 0:00:10]} 77. Nb5 {[%clk 0:00:10]}  Kf6 {[%clk 0:00:11]} 78. Nd4 {[%clk 0:00:10]}  Ke7 {[%clk 0:00:11]} 79. Ne6 {[%clk 0:00:10]}  Kd7 {[%clk 0:00:12]} 80. Nc5+ {[%clk 0:00:09]}  Ke7 {[%clk 0:00:12]} 81. Be5 {[%clk 0:00:09]}  Kf7 {[%clk 0:00:11]} 82. Ne4 {[%clk 0:00:08]}  Ke7 {[%clk 0:00:11]} 83. Bd6+ {[%clk 0:00:08]}  Kd7 {[%clk 0:00:12]} 84. Nc5+ {[%clk 0:00:09]}  Kc8 {[%clk 0:00:12]} 85. Kc6 {[%clk 0:00:10]}  Kd8 {[%clk 0:00:12]} 86. Nd7 {[%clk 0:00:08]}  Kc8 {[%clk 0:00:12]} 87. Bc5 {[%clk 0:00:08]}  Kd8 {[%clk 0:00:12]} 88. Kd6 {[%clk 0:00:08]}  Kc8 {[%clk 0:00:13]} 89. Kc6 {[%clk 0:00:08]}  Kd8 {[%clk 0:00:13]} 90. Bb4 {[%clk 0:00:09]}  Kc8 {[%clk 0:00:13]} 91. Nb6+ {[%clk 0:00:09]}  Kb8 {[%clk 0:00:13]} 92. Kb5 {[%clk 0:00:10]}  Kb7 {[%clk 0:00:13]} 93. Nc4 {[%clk 0:00:11]}  Kc7 {[%clk 0:00:13]} 94. Bd6+ {[%clk 0:00:11]}  Kb7 {[%clk 0:00:14]} 95. Kc5 {[%clk 0:00:10]}  Ka6 {[%clk 0:00:14]} 96. Kc6 {[%clk 0:00:10]}  Ka7 {[%clk 0:00:15]} 97. Nb6 {[%clk 0:00:11]}  Ka6 {[%clk 0:00:15]} 98. Nc8 {[%clk 0:00:11]}  Ka5 {[%clk 0:00:15]} 99. Bc5 {[%clk 0:00:10]}  Ka6 {[%clk 0:00:15]} 100. Nd6 {[%clk 0:00:11]}  Ka5 {[%clk 0:00:16]} 101. Nb7+ {[%clk 0:00:10]}  Ka6 {[%clk 0:00:16]} 102. Bd6 {[%clk 0:00:11]}  Ka7 {[%clk 0:00:16]} 103. Bc7 {[%clk 0:00:11]}  Ka6 {[%clk 0:00:17]} 104. Bb8 {[%clk 0:00:12]} 1/2-1/2


[Site "https://www.chess.com"]

[Event "Titled Tuesday Blitz February 28 Early 2023"]
[White "Pein, Jonathan"]
[Black "Talibov, Shiroghlan"]
[WhiteFideId "417092"]
[BlackFideId "13429078"]
[WhiteElo "2151"]
[BlackElo "2218"]
[Result "0-1"]
[Round "01"]
[TimeControl "180+2"]
[Date "2023.02.28"]
[WhiteClock "0:00:05"]
[BlackClock "0:00:09"]

1. e4 {[%clk 0:02:59]}  c5 {[%clk 0:02:59]} 2. Nf3 {[%clk 0:02:59]}  e6 {[%clk 0:02:58]} 3. d4 {[%clk 0:02:59]}  cxd4 {[%clk 0:02:59]} 4. Nxd4 {[%clk 0:02:59]}  a6 {[%clk 0:02:57]} 5. Bd3 {[%clk 0:02:56]}  b5 {[%clk 0:02:55]} 6. O-O {[%clk 0:02:55]}  Bb7 {[%clk 0:02:56]} 7. a4 {[%clk 0:02:53]}  b4 {[%clk 0:02:54]} 8. Qe2 {[%clk 0:02:43]}  Ne7 {[%clk 0:02:53]} 9. Nd2 {[%clk 0:02:40]}  Nbc6 {[%clk 0:02:52]} 10. N2b3 {[%clk 0:02:37]}  Nxd4 {[%clk 0:02:51]} 11. Nxd4 {[%clk 0:02:37]}  Nc6 {[%clk 0:02:52]} 12. Be3 {[%clk 0:02:32]}  Ne5 {[%clk 0:02:32]} 13. f4 {[%clk 0:02:17]}  Nxd3 {[%clk 0:02:30]} 14. cxd3 {[%clk 0:02:18]}  Bc5 {[%clk 0:02:29]} 15. Nb3 {[%clk 0:02:13]}  Be7 {[%clk 0:02:24]} 16. Qf2 {[%clk 0:02:01]}  d6 {[%clk 0:02:17]} 17. Bb6 {[%clk 0:01:56]}  Qd7 {[%clk 0:02:16]} 18. Na5 {[%clk 0:01:57]}  O-O {[%clk 0:02:12]} 19. Nxb7 {[%clk 0:01:54]}  Qxb7 {[%clk 0:02:10]} 20. Bd4 {[%clk 0:01:43]}  Rac8 {[%clk 0:02:07]} 21. f5 {[%clk 0:01:25]}  e5 {[%clk 0:02:05]} 22. Be3 {[%clk 0:01:21]}  d5 {[%clk 0:02:06]} 23. Qg3 {[%clk 0:01:01]}  d4 {[%clk 0:01:59]} 24. f6 {[%clk 0:00:48]}  Bxf6 {[%clk 0:01:51]} 25. Bh6 {[%clk 0:00:49]}  Qe7 {[%clk 0:01:33]} 26. Rf5 {[%clk 0:00:42]}  Kh8 {[%clk 0:01:29]} 27. Raf1 {[%clk 0:00:43]}  Rg8 {[%clk 0:01:20]} 28. Qh3 {[%clk 0:00:39]}  Qe6 {[%clk 0:01:00]} 29. Bd2 {[%clk 0:00:31]}  Rc2 {[%clk 0:00:36]} 30. Bxb4 {[%clk 0:00:15]}  Rxb2 {[%clk 0:00:32]} 31. Bd6 {[%clk 0:00:10]}  Qxd6 {[%clk 0:00:29]} 32. Rh5 {[%clk 0:00:10]}  Bh4 {[%clk 0:00:18]} 33. Qxh4 {[%clk 0:00:07]}  h6 {[%clk 0:00:13]} 34. h3 {[%clk 0:00:03]}  Qg6 {[%clk 0:00:13]} 35. g4 {[%clk 0:00:02]}  f6 {[%clk 0:00:12]} 36. Rhf5 {[%clk 0:00:01]}  Rb6 {[%clk 0:00:08]} 37. R5f3 {[%clk 0:00:02]}  Rc8 {[%clk 0:00:07]} 38. Qg3 {[%clk 0:00:02]}  Rc2 {[%clk 0:00:07]} 39. h4 {[%clk 0:00:03]}  h5 {[%clk 0:00:07]} 40. g5 {[%clk 0:00:02]}  Rbb2 {[%clk 0:00:06]} 41. R3f2 {[%clk 0:00:01]}  Rxf2 {[%clk 0:00:06]} 42. Rxf2 {[%clk 0:00:02]}  Rxf2 {[%clk 0:00:06]} 43. Kxf2 {[%clk 0:00:03]}  Kh7 {[%clk 0:00:04]} 44. Qf3 {[%clk 0:00:03]}  fxg5 {[%clk 0:00:04]} 45. hxg5 {[%clk 0:00:03]}  Qxg5 {[%clk 0:00:04]} 46. Qf7 {[%clk 0:00:03]}  Qf6+ {[%clk 0:00:04]} 47. Qxf6 {[%clk 0:00:03]}  gxf6 {[%clk 0:00:05]} 48. Kg3 {[%clk 0:00:04]}  Kg6 {[%clk 0:00:06]} 49. Kh4 {[%clk 0:00:04]}  f5 {[%clk 0:00:06]} 50. exf5+ {[%clk 0:00:05]}  Kxf5 {[%clk 0:00:07]} 51. Kg3 {[%clk 0:00:05]}  e4 {[%clk 0:00:08]} 52. dxe4+ {[%clk 0:00:05]}  Kxe4 {[%clk 0:00:09]} 0-1


[Site "https://www.chess.com"]

[Event "Titled Tuesday Blitz February 28 Early 2023"]
[White "Nur, Shahidee Bin Saharan"]
[Black "Bennett, Patrick"]
[WhiteFideId "5810973"]
[BlackFideId "1801228"]
[WhiteElo "2768"]
[BlackElo "2418"]
[Result "1-0"]
[Round "01"]
[TimeControl "180+2"]
[Date "2023.02.28"]
[WhiteClock "0:00:34"]
[BlackClock "0:00:13"]

1. e4 {[%clk 0:03:00]}  c5 {[%clk 0:02:57]} 2. Nc3 {[%clk 0:03:01]}  d6 {[%clk 0:02:57]} 3. g3 {[%clk 0:03:01]}  Nc6 {[%clk 0:02:56]} 4. Bg2 {[%clk 0:03:02]}  g6 {[%clk 0:02:56]} 5. d3 {[%clk 0:03:03]}  Bg7 {[%clk 0:02:56]} 6. Nge2 {[%clk 0:03:03]}  e5 {[%clk 0:02:54]} 7. O-O {[%clk 0:03:04]}  Nge7 {[%clk 0:02:54]} 8. f4 {[%clk 0:03:05]}  O-O {[%clk 0:02:53]} 9. h3 {[%clk 0:03:04]}  Nd4 {[%clk 0:02:52]} 10. g4 {[%clk 0:03:04]}  f5 {[%clk 0:02:50]} 11. gxf5 {[%clk 0:03:04]}  gxf5 {[%clk 0:02:50]} 12. Ng3 {[%clk 0:03:04]}  Kh8 {[%clk 0:02:45]} 13. Nh5 {[%clk 0:02:54]}  Ng6 {[%clk 0:02:27]} 14. Nxg7 {[%clk 0:02:54]}  Kxg7 {[%clk 0:02:27]} 15. fxe5 {[%clk 0:02:50]}  dxe5 {[%clk 0:02:26]} 16. exf5 {[%clk 0:02:50]}  Bxf5 {[%clk 0:02:24]} 17. Ne4 {[%clk 0:02:45]}  Qh4 {[%clk 0:02:18]} 18. Bg5 {[%clk 0:02:41]}  Bxe4 {[%clk 0:01:56]} 19. Bxh4 {[%clk 0:02:40]}  Bxg2 {[%clk 0:01:56]} 20. Bf6+ {[%clk 0:02:30]}  Rxf6 {[%clk 0:01:48]} 21. Rxf6 {[%clk 0:02:30]}  Kxf6 {[%clk 0:01:48]} 22. Kxg2 {[%clk 0:02:30]}  Nf4+ {[%clk 0:01:48]} 23. Kh1 {[%clk 0:02:24]}  Nxh3 {[%clk 0:01:40]} 24. Qd2 {[%clk 0:02:14]}  Nf4 {[%clk 0:01:25]} 25. Rf1 {[%clk 0:02:12]}  Ne6 {[%clk 0:01:23]} 26. Qh2 {[%clk 0:02:08]}  h5 {[%clk 0:01:02]} 27. Qh4+ {[%clk 0:01:58]}  Kg6 {[%clk 0:00:51]} 28. c3 {[%clk 0:01:44]}  Rd8 {[%clk 0:00:39]} 29. Qg3+ {[%clk 0:01:41]}  Kf7 {[%clk 0:00:37]} 30. Rf3 {[%clk 0:01:23]}  Rg8 {[%clk 0:00:37]} 31. Qe1 {[%clk 0:01:21]}  Rg5 {[%clk 0:00:32]} 32. Qe4 {[%clk 0:01:14]}  Kf6 {[%clk 0:00:30]} 33. d4 {[%clk 0:01:09]}  cxd4 {[%clk 0:00:29]} 34. cxd4 {[%clk 0:01:09]}  Nxd4 {[%clk 0:00:28]} 35. Rxf4+ {[%clk 0:01:09]}  exf4 {[%clk 0:00:27]} 36. Qxd4+ {[%clk 0:01:09]}  Kf5 {[%clk 0:00:27]} 37. Qd5+ {[%clk 0:01:05]}  Kg4 {[%clk 0:00:27]} 38. Qg2+ {[%clk 0:01:05]}  Kf5 {[%clk 0:00:26]} 39. Qxb7 {[%clk 0:01:05]}  Kg4 {[%clk 0:00:19]} 40. Qd7+ {[%clk 0:01:01]}  Kg3 {[%clk 0:00:19]} 41. Qd2 {[%clk 0:00:57]}  Rg4 {[%clk 0:00:16]} 42. Qg2+ {[%clk 0:00:51]}  Kh4 {[%clk 0:00:16]} 43. Qf2+ {[%clk 0:00:52]}  Kg5 {[%clk 0:00:16]} 44. Qxa7 {[%clk 0:00:52]}  f3 {[%clk 0:00:16]} 45. Qe3+ {[%clk 0:00:51]}  Rf4 {[%clk 0:00:16]} 46. Kg1 {[%clk 0:00:45]}  h4 {[%clk 0:00:14]} 47. Kf2 {[%clk 0:00:44]}  h3 {[%clk 0:00:15]} 48. Qe5+ {[%clk 0:00:35]}  Kg4 {[%clk 0:00:15]} 49. Qg7+ {[%clk 0:00:33]}  Kf5 {[%clk 0:00:15]} 50. Qh7+ {[%clk 0:00:32]}  Ke5 {[%clk 0:00:14]} 51. Qxh3 {[%clk 0:00:32]}  Rd4 {[%clk 0:00:12]} 52. Qh8+ {[%clk 0:00:32]}  Ke4 {[%clk 0:00:12]} 53. Qxd4+ {[%clk 0:00:33]}  Kxd4 {[%clk 0:00:13]} 54. Kxf3 {[%clk 0:00:34]} 1-0


[Site "https://www.chess.com"]

[Event "Titled Tuesday Blitz February 28 Early 2023"]
[White "Mohammed, Zozek Salah Mohammed"]
[Black "Samunenkov, Ihor"]
[WhiteFideId "4803361"]
[BlackFideId "14187086"]
[WhiteElo "2211"]
[BlackElo "2457"]
[Result "0-1"]
[Round "01"]
[TimeControl "180+2"]
[Date "2023.02.28"]
[WhiteClock "0:02:11"]
[BlackClock "0:01:49"]

1. d4 {[%clk 0:02:59]}  d5 {[%clk 0:02:56]} 2. Nf3 {[%clk 0:02:58]}  e6 {[%clk 0:02:56]} 3. g3 {[%clk 0:02:53]}  c5 {[%clk 0:02:50]} 4. Bg2 {[%clk 0:02:52]}  cxd4 {[%clk 0:02:49]} 5. Nxd4 {[%clk 0:02:52]}  e5 {[%clk 0:02:40]} 6. Nb3 {[%clk 0:02:48]}  Be6 {[%clk 0:02:35]} 7. O-O {[%clk 0:02:48]}  Nc6 {[%clk 0:02:34]} 8. e4 {[%clk 0:02:42]}  Nf6 {[%clk 0:02:11]} 9. Nc3 {[%clk 0:02:41]}  d4 {[%clk 0:02:06]} 10. Na4 {[%clk 0:02:29]}  Bc4 {[%clk 0:02:05]} 11. Re1 {[%clk 0:02:27]}  Bxb3 {[%clk 0:01:57]} 12. cxb3 {[%clk 0:02:18]}  b5 {[%clk 0:01:57]} 13. Qc2 {[%clk 0:02:18]}  Rc8 {[%clk 0:01:55]} 14. Nc5 {[%clk 0:02:12]}  Nb4 {[%clk 0:01:54]} 15. Qe2 {[%clk 0:02:12]}  Bxc5 {[%clk 0:01:51]} 16. Qxb5+ {[%clk 0:02:11]}  Qd7 {[%clk 0:01:49]} 0-1


[Site "https://www.chess.com"]

[Event "Titled Tuesday Blitz February 28 Early 2023"]
[White "Trost, Edvin"]
[Black "Dinu, Dumitru-Daniel"]
[WhiteFideId "1729519"]
[BlackFideId "1208403"]
[WhiteElo "2395"]
[BlackElo "2240"]
[Result "1-0"]
[Round "01"]
[TimeControl "180+2"]
[Date "2023.02.28"]
[WhiteClock "0:00:49"]
[BlackClock "0:00:07"]

1. Nf3 {[%clk 0:03:00]}  Nf6 {[%clk 0:02:58]} 2. b3 {[%clk 0:02:59]}  g6 {[%clk 0:02:56]} 3. Bb2 {[%clk 0:03:00]}  Bg7 {[%clk 0:02:57]} 4. e3 {[%clk 0:02:58]}  d6 {[%clk 0:02:56]} 5. Be2 {[%clk 0:02:58]}  O-O {[%clk 0:02:54]} 6. c4 {[%clk 0:02:58]}  Nbd7 {[%clk 0:02:53]} 7. Nc3 {[%clk 0:02:58]}  b6 {[%clk 0:02:53]} 8. d4 {[%clk 0:02:59]}  Bb7 {[%clk 0:02:53]} 9. Qc2 {[%clk 0:02:59]}  e5 {[%clk 0:02:51]} 10. h3 {[%clk 0:02:53]}  Re8 {[%clk 0:02:50]} 11. O-O-O {[%clk 0:02:47]}  Qe7 {[%clk 0:02:44]} 12. Rhe1 {[%clk 0:02:44]}  e4 {[%clk 0:02:42]} 13. Nd2 {[%clk 0:02:44]}  a5 {[%clk 0:02:38]} 14. g4 {[%clk 0:02:43]}  d5 {[%clk 0:02:33]} 15. g5 {[%clk 0:02:41]}  Nh5 {[%clk 0:02:33]} 16. Bxh5 {[%clk 0:02:40]}  gxh5 {[%clk 0:02:33]} 17. Nxd5 {[%clk 0:02:40]}  Bxd5 {[%clk 0:02:33]} 18. cxd5 {[%clk 0:02:41]}  Qxg5 {[%clk 0:02:32]} 19. Nxe4 {[%clk 0:02:38]}  Qxd5 {[%clk 0:02:28]} 20. Ng3 {[%clk 0:02:38]}  c5 {[%clk 0:02:22]} 21. dxc5 {[%clk 0:02:32]}  Bxb2+ {[%clk 0:02:20]} 22. Kxb2 {[%clk 0:02:33]}  Qe5+ {[%clk 0:02:20]} 23. Kb1 {[%clk 0:02:33]}  Nxc5 {[%clk 0:02:19]} 24. f4 {[%clk 0:02:22]}  Qe6 {[%clk 0:01:57]} 25. Rg1 {[%clk 0:02:09]}  Kf8 {[%clk 0:01:37]} 26. Nxh5 {[%clk 0:01:49]}  Red8 {[%clk 0:01:10]} 27. Qxh7 {[%clk 0:01:37]}  Ne4 {[%clk 0:00:23]} 28. Rxd8+ {[%clk 0:01:18]}  Rxd8 {[%clk 0:00:22]} 29. Rg8+ {[%clk 0:01:13]}  Ke7 {[%clk 0:00:22]} 30. Rxd8 {[%clk 0:01:14]}  Kxd8 {[%clk 0:00:20]} 31. Qh8+ {[%clk 0:01:13]}  Kd7 {[%clk 0:00:19]} 32. Qd4+ {[%clk 0:01:13]}  Kc7 {[%clk 0:00:19]} 33. Qe5+ {[%clk 0:01:12]}  Qxe5 {[%clk 0:00:19]} 34. fxe5 {[%clk 0:01:13]}  Kd7 {[%clk 0:00:19]} 35. Nf4 {[%clk 0:01:13]}  Ke7 {[%clk 0:00:13]} 36. Kc2 {[%clk 0:01:13]}  Nf2 {[%clk 0:00:12]} 37. Kc3 {[%clk 0:01:12]}  Nd1+ {[%clk 0:00:11]} 38. Kd4 {[%clk 0:01:12]}  Nf2 {[%clk 0:00:09]} 39. h4 {[%clk 0:01:11]}  Ng4 {[%clk 0:00:09]} 40. Nd5+ {[%clk 0:01:11]}  Ke6 {[%clk 0:00:08]} 41. Nxb6 {[%clk 0:01:11]}  Nxe5 {[%clk 0:00:09]} 42. Nc4 {[%clk 0:01:11]}  Nf3+ {[%clk 0:00:09]} 43. Ke4 {[%clk 0:01:11]}  Nxh4 {[%clk 0:00:09]} 44. Nxa5 {[%clk 0:01:11]}  f5+ {[%clk 0:00:10]} 45. Kd4 {[%clk 0:01:10]}  Nf3+ {[%clk 0:00:10]} 46. Kc3 {[%clk 0:01:11]}  Kd5 {[%clk 0:00:10]} 47. Nc4 {[%clk 0:01:10]}  Ng5 {[%clk 0:00:09]} 48. b4 {[%clk 0:01:10]}  Ne4+ {[%clk 0:00:10]} 49. Kb3 {[%clk 0:01:11]}  Kc6 {[%clk 0:00:08]} 50. a4 {[%clk 0:01:11]}  Nf6 {[%clk 0:00:08]} 51. Nd2 {[%clk 0:01:11]}  Nd5 {[%clk 0:00:08]} 52. Nf1 {[%clk 0:01:12]}  Kb6 {[%clk 0:00:07]} 53. Kc4 {[%clk 0:01:12]}  Kc6 {[%clk 0:00:08]} 54. b5+ {[%clk 0:01:12]}  Kd6 {[%clk 0:00:09]} 55. a5 {[%clk 0:01:12]}  Ne7 {[%clk 0:00:09]} 56. Ng3 {[%clk 0:01:11]}  Ke5 {[%clk 0:00:07]} 57. a6 {[%clk 0:01:11]}  Kd6 {[%clk 0:00:08]} 58. a7 {[%clk 0:01:11]}  Nc8 {[%clk 0:00:08]} 59. a8=N {[%clk 0:01:05]}  Ke5 {[%clk 0:00:06]} 60. Kc5 {[%clk 0:00:54]}  Nd6 {[%clk 0:00:06]} 61. b6 {[%clk 0:00:51]}  Nb7+ {[%clk 0:00:06]} 62. Kc6 {[%clk 0:00:52]}  Na5+ {[%clk 0:00:06]} 63. Kc7 {[%clk 0:00:52]}  f4 {[%clk 0:00:06]} 64. exf4+ {[%clk 0:00:53]}  Kxf4 {[%clk 0:00:06]} 65. Ne2+ {[%clk 0:00:53]}  Ke5 {[%clk 0:00:06]} 66. Nc1 {[%clk 0:00:52]}  Kd5 {[%clk 0:00:06]} 67. Nb3 {[%clk 0:00:51]}  Kc4 {[%clk 0:00:06]} 68. Nxa5+ {[%clk 0:00:48]}  Kb5 {[%clk 0:00:06]} 69. b7 {[%clk 0:00:48]}  Kxa5 {[%clk 0:00:05]} 70. b8=Q {[%clk 0:00:48]}  Ka4 {[%clk 0:00:06]} 71. Qb2 {[%clk 0:00:48]}  Ka5 {[%clk 0:00:06]} 72. Qb3 {[%clk 0:00:48]}  Ka6 {[%clk 0:00:07]} 73. Qb6# {[%clk 0:00:49]} 1-0


[Site "https://www.chess.com"]

[Event "Titled Tuesday Blitz February 28 Early 2023"]
[White "Gledura, Benjamin"]
[Black "Balint, Vilmos"]
[WhiteFideId "712779"]
[BlackFideId "718050"]
[WhiteElo "2537"]
[BlackElo "2034"]
[Result "1-0"]
[Round "01"]
[TimeControl "180+2"]
[Date "2023.02.28"]
[WhiteClock "0:01:40"]
[BlackClock "0:01:56"]

1. Nf3 {[%clk 0:02:49]}  b5 {[%clk 0:02:59]} 2. e4 {[%clk 0:02:48]}  Bb7 {[%clk 0:02:58]} 3. Bxb5 {[%clk 0:02:48]}  Bxe4 {[%clk 0:02:58]} 4. O-O {[%clk 0:02:48]}  Nf6 {[%clk 0:02:57]} 5. Re1 {[%clk 0:02:48]}  e6 {[%clk 0:02:55]} 6. d4 {[%clk 0:02:48]}  Be7 {[%clk 0:02:48]} 7. c4 {[%clk 0:02:47]}  O-O {[%clk 0:02:45]} 8. Nc3 {[%clk 0:02:46]}  Bb7 {[%clk 0:02:45]} 9. Ba4 {[%clk 0:02:40]}  d5 {[%clk 0:02:37]} 10. c5 {[%clk 0:02:38]}  Bc6 {[%clk 0:02:37]} 11. Bc2 {[%clk 0:02:38]}  Nbd7 {[%clk 0:02:35]} 12. Bf4 {[%clk 0:02:37]}  h6 {[%clk 0:02:32]} 13. Qd2 {[%clk 0:02:36]}  Re8 {[%clk 0:02:27]} 14. b4 {[%clk 0:02:34]}  Rb8 {[%clk 0:02:24]} 15. Rab1 {[%clk 0:02:34]}  Bb5 {[%clk 0:02:20]} 16. Nxb5 {[%clk 0:02:31]}  Rxb5 {[%clk 0:02:20]} 17. a4 {[%clk 0:02:27]}  Rb8 {[%clk 0:02:19]} 18. b5 {[%clk 0:02:26]}  Nf8 {[%clk 0:02:18]} 19. Ne5 {[%clk 0:02:24]}  Qc8 {[%clk 0:02:11]} 20. Nc6 {[%clk 0:02:24]}  Ra8 {[%clk 0:02:11]} 21. Bxh6 {[%clk 0:02:19]}  gxh6 {[%clk 0:02:11]} 22. Qxh6 {[%clk 0:02:19]}  N8h7 {[%clk 0:02:07]} 23. Re3 {[%clk 0:01:51]}  Bf8 {[%clk 0:02:07]} 24. Rg3+ {[%clk 0:01:51]}  Kh8 {[%clk 0:02:07]} 25. Ne5 {[%clk 0:01:49]}  Re7 {[%clk 0:02:01]} 26. Qh4 {[%clk 0:01:44]}  Bg7 {[%clk 0:02:01]} 27. Bxh7 {[%clk 0:01:41]}  Nxh7 {[%clk 0:01:57]} 28. Qxe7 {[%clk 0:01:40]}  Qf8 {[%clk 0:01:56]} 1-0


[Site "https://www.chess.com"]

[Event "Titled Tuesday Blitz February 28 Early 2023"]
[White "Hambleton, Aman"]
[Black "Tarasova, Viktoriya"]
[WhiteFideId "2606577"]
[BlackFideId "4175840"]
[WhiteElo "2511"]
[BlackElo "2182"]
[Result "1-0"]
[Round "01"]
[TimeControl "180+2"]
[Date "2023.02.28"]
[WhiteClock "0:00:12"]
[BlackClock "0:00:39"]

1. d4 {[%clk 0:02:57]}  Nf6 {[%clk 0:02:58]} 2. Bf4 {[%clk 0:02:56]}  d5 {[%clk 0:02:58]} 3. e3 {[%clk 0:02:57]}  c5 {[%clk 0:02:57]} 4. c3 {[%clk 0:02:57]}  e6 {[%clk 0:02:57]} 5. Nd2 {[%clk 0:02:55]}  Bd6 {[%clk 0:02:57]} 6. Ngf3 {[%clk 0:02:55]}  O-O {[%clk 0:02:56]} 7. Bd3 {[%clk 0:02:55]}  Bxf4 {[%clk 0:02:56]} 8. exf4 {[%clk 0:02:56]}  Qc7 {[%clk 0:02:56]} 9. g3 {[%clk 0:02:56]}  b6 {[%clk 0:02:53]} 10. Qe2 {[%clk 0:02:56]}  a5 {[%clk 0:02:50]} 11. O-O {[%clk 0:02:56]}  Ba6 {[%clk 0:02:50]} 12. Bxa6 {[%clk 0:02:56]}  Nxa6 {[%clk 0:02:47]} 13. Rfe1 {[%clk 0:02:57]}  Nb8 {[%clk 0:02:34]} 14. Kg2 {[%clk 0:02:36]}  a4 {[%clk 0:02:21]} 15. a3 {[%clk 0:02:35]}  c4 {[%clk 0:02:19]} 16. Ne5 {[%clk 0:02:27]}  Nc6 {[%clk 0:02:19]} 17. Qf3 {[%clk 0:02:17]}  Rfe8 {[%clk 0:01:57]} 18. Rad1 {[%clk 0:02:01]}  Rad8 {[%clk 0:01:45]} 19. Ndxc4 {[%clk 0:01:48]}  Nxd4 {[%clk 0:01:27]} 20. Rxd4 {[%clk 0:01:49]}  dxc4 {[%clk 0:01:27]} 21. Rxc4 {[%clk 0:01:47]}  Qd6 {[%clk 0:01:22]} 22. Rd4 {[%clk 0:00:45]}  Qc5 {[%clk 0:01:15]} 23. Qb7 {[%clk 0:00:34]}  Rxd4 {[%clk 0:01:06]} 24. Qxf7+ {[%clk 0:00:33]}  Kh8 {[%clk 0:01:06]} 25. cxd4 {[%clk 0:00:34]}  Qxd4 {[%clk 0:01:07]} 26. Rc1 {[%clk 0:00:26]}  Qxb2 {[%clk 0:00:53]} 27. Rc7 {[%clk 0:00:24]}  Rg8 {[%clk 0:00:53]} 28. Qxe6 {[%clk 0:00:21]}  h6 {[%clk 0:00:46]} 29. Nf7+ {[%clk 0:00:13]}  Kh7 {[%clk 0:00:46]} 30. Qf5+ {[%clk 0:00:12]}  g6 {[%clk 0:00:43]} 31. Ng5+ {[%clk 0:00:11]}  Kh8 {[%clk 0:00:40]} 32. Qxf6+ {[%clk 0:00:11]}  Qxf6 {[%clk 0:00:39]} 33. Rh7# {[%clk 0:00:12]} 1-0


[Site "https://www.chess.com"]